[Event "Titled Tuesday Blitz June 22 2021"]
[White "Shishkov, Andrei"]
[Black "Bortnyk, Olexandr"]
[WhiteFideId "4500563"]
[BlackFideId "14120828"]
[WhiteElo "2312"]
[BlackElo "2723"]
[Result "0-1"]
[Round "01"]
[TimeControl "180+1"]
[Date "2021.06.22"]
[WhiteClock "0:00:02"]
[BlackClock "0:01:30"]

1. d4 {[%clk 0:03:00]}  d6 {[%clk 0:02:58]} 2. e4 {[%clk 0:03:00]}  Nf6 {[%clk 0:02:58]} 3. f3 {[%clk 0:03:00]}  c5 {[%clk 0:02:56]} 4. d5 {[%clk 0:02:59]}  e6 {[%clk 0:02:54]} 5. c4 {[%clk 0:02:58]}  Be7 {[%clk 0:02:48]} 6. Ne2 {[%clk 0:02:54]}  O-O {[%clk 0:02:47]} 7. Nec3 {[%clk 0:02:54]}  a6 {[%clk 0:02:46]} 8. a4 {[%clk 0:02:53]}  Nbd7 {[%clk 0:02:45]} 9. Be2 {[%clk 0:02:54]}  Ne5 {[%clk 0:02:39]} 10. O-O {[%clk 0:02:52]}  Bd7 {[%clk 0:02:33]} 11. f4 {[%clk 0:02:46]}  Ng6 {[%clk 0:02:33]} 12. e5 {[%clk 0:02:45]}  Ne8 {[%clk 0:02:29]} 13. dxe6 {[%clk 0:01:41]}  fxe6 {[%clk 0:02:30]} 14. Bf3 {[%clk 0:01:41]}  dxe5 {[%clk 0:02:28]} 15. Bxb7 {[%clk 0:01:19]}  Ra7 {[%clk 0:02:28]} 16. Be4 {[%clk 0:01:18]}  Nxf4 {[%clk 0:02:26]} 17. g3 {[%clk 0:01:08]}  Nh3+ {[%clk 0:02:23]} 18. Kg2 {[%clk 0:01:08]}  Rxf1 {[%clk 0:02:24]} 19. Qxf1 {[%clk 0:01:07]}  Ng5 {[%clk 0:02:24]} 20. Bxg5 {[%clk 0:01:05]}  Bxg5 {[%clk 0:02:25]} 21. Qd3 {[%clk 0:00:57]}  Nf6 {[%clk 0:02:22]} 22. Nd2 {[%clk 0:00:58]}  Qb8 {[%clk 0:02:17]} 23. Rf1 {[%clk 0:00:47]}  Qxb2 {[%clk 0:01:56]} 24. Rf2 {[%clk 0:00:47]}  Bxd2 {[%clk 0:01:55]} 25. Rxd2 {[%clk 0:00:46]}  Qb3 {[%clk 0:01:53]} 26. Kh3 {[%clk 0:00:16]}  Rc7 {[%clk 0:01:34]} 27. Qd6 {[%clk 0:00:09]}  Qxc3 {[%clk 0:01:32]} 28. Qxc7 {[%clk 0:00:09]}  Qxd2 {[%clk 0:01:31]} 29. Qd8+ {[%clk 0:00:04]}  Kf7 {[%clk 0:01:31]} 30. Bc6 {[%clk 0:00:02]}  Qh6+ {[%clk 0:01:30]} 0-1


[Site "https://www.chess.com"]

[Event "Titled Tuesday Blitz June 22 2021"]
[White "Sukandar, Irine Kharisma"]
[Black "Sjugirov, Sanan"]
[WhiteFideId "7101937"]
[BlackFideId "4189302"]
[WhiteElo "2313"]
[BlackElo "2472"]
[Result "0-1"]
[Round "01"]
[TimeControl "180+1"]
[Date "2021.06.22"]
[WhiteClock "0:00:01"]
[BlackClock "0:00:12"]

1. d4 {[%clk 0:02:59]}  Nf6 {[%clk 0:02:59]} 2. Nf3 {[%clk 0:02:59]}  g6 {[%clk 0:02:59]} 3. Nc3 {[%clk 0:02:48]}  d5 {[%clk 0:02:58]} 4. Bf4 {[%clk 0:02:43]}  Bg7 {[%clk 0:02:53]} 5. e3 {[%clk 0:02:42]}  O-O {[%clk 0:02:51]} 6. Nb5 {[%clk 0:02:42]}  Na6 {[%clk 0:02:50]} 7. c4 {[%clk 0:02:42]}  c5 {[%clk 0:02:45]} 8. Bd3 {[%clk 0:02:27]}  Bg4 {[%clk 0:02:30]} 9. O-O {[%clk 0:02:22]}  cxd4 {[%clk 0:02:30]} 10. exd4 {[%clk 0:02:20]}  Nb4 {[%clk 0:02:20]} 11. Be2 {[%clk 0:02:18]}  dxc4 {[%clk 0:02:19]} 12. Ne5 {[%clk 0:02:04]}  Bxe2 {[%clk 0:02:15]} 13. Qxe2 {[%clk 0:02:04]}  Nbd5 {[%clk 0:02:04]} 14. Bg3 {[%clk 0:01:58]}  a6 {[%clk 0:02:03]} 15. Nc3 {[%clk 0:01:58]}  b5 {[%clk 0:01:59]} 16. a4 {[%clk 0:01:58]}  Qb6 {[%clk 0:01:53]} 17. Nxd5 {[%clk 0:01:54]}  Nxd5 {[%clk 0:01:54]} 18. Nd7 {[%clk 0:01:54]}  Qc6 {[%clk 0:01:29]} 19. Nxf8 {[%clk 0:01:54]}  Rxf8 {[%clk 0:01:30]} 20. axb5 {[%clk 0:01:53]}  axb5 {[%clk 0:01:31]} 21. Rfd1 {[%clk 0:01:50]}  Rc8 {[%clk 0:01:24]} 22. Qe4 {[%clk 0:01:48]}  e6 {[%clk 0:01:15]} 23. Be5 {[%clk 0:01:42]}  b4 {[%clk 0:01:07]} 24. Bxg7 {[%clk 0:01:38]}  Kxg7 {[%clk 0:01:08]} 25. Qe5+ {[%clk 0:01:38]}  Kg8 {[%clk 0:01:07]} 26. Ra5 {[%clk 0:01:33]}  Qb6 {[%clk 0:01:04]} 27. Rda1 {[%clk 0:01:21]}  c3 {[%clk 0:01:00]} 28. Ra8 {[%clk 0:01:21]}  Qc6 {[%clk 0:00:57]} 29. Rxc8+ {[%clk 0:01:15]}  Qxc8 {[%clk 0:00:58]} 30. bxc3 {[%clk 0:01:14]}  bxc3 {[%clk 0:00:59]} 31. Qd6 {[%clk 0:01:04]}  h5 {[%clk 0:00:49]} 32. Qc5 {[%clk 0:00:59]}  Qb7 {[%clk 0:00:48]} 33. g3 {[%clk 0:00:49]}  Kg7 {[%clk 0:00:46]} 34. h4 {[%clk 0:00:29]}  Qb2 {[%clk 0:00:42]} 35. Ra8 {[%clk 0:00:28]}  Qb1+ {[%clk 0:00:38]} 36. Kh2 {[%clk 0:00:28]}  Qe1 {[%clk 0:00:19]} 37. Qf8+ {[%clk 0:00:20]}  Kf6 {[%clk 0:00:19]} 38. Qd8+ {[%clk 0:00:19]}  Ne7 {[%clk 0:00:19]} 39. Kg2 {[%clk 0:00:12]}  Qe4+ {[%clk 0:00:19]} 40. Kh2 {[%clk 0:00:10]}  Qe2 {[%clk 0:00:16]} 41. Qh8+ {[%clk 0:00:10]}  Kf5 {[%clk 0:00:15]} 42. Ra5+ {[%clk 0:00:07]}  Nd5 {[%clk 0:00:15]} 43. Kg1 {[%clk 0:00:04]}  c2 {[%clk 0:00:14]} 44. Qc8 {[%clk 0:00:01]}  Qe1+ {[%clk 0:00:13]} 45. Kg2 {[%clk 0:00:01]}  c1=Q {[%clk 0:00:12]} 0-1


[Site "https://www.chess.com"]

[Event "Titled Tuesday Blitz June 22 2021"]
[White "Tabatabaei, M. Amin"]
[Black "Popadic, Dragan"]
[WhiteFideId "12521213"]
[BlackFideId "913650"]
[WhiteElo "2555"]
[BlackElo "2207"]
[Result "1-0"]
[Round "01"]
[TimeControl "180+1"]
[Date "2021.06.22"]
[WhiteClock "0:00:25"]
[BlackClock "0:00:21"]

1. d4 {[%clk 0:03:00]}  Nf6 {[%clk 0:02:59]} 2. c4 {[%clk 0:03:01]}  g6 {[%clk 0:02:59]} 3. Nc3 {[%clk 0:02:54]}  Bg7 {[%clk 0:02:59]} 4. e4 {[%clk 0:02:53]}  d6 {[%clk 0:03:00]} 5. Be2 {[%clk 0:02:53]}  O-O {[%clk 0:02:56]} 6. Nf3 {[%clk 0:02:53]}  e5 {[%clk 0:02:54]} 7. d5 {[%clk 0:02:53]}  a5 {[%clk 0:02:53]} 8. Bg5 {[%clk 0:02:54]}  h6 {[%clk 0:02:52]} 9. Bh4 {[%clk 0:02:52]}  Na6 {[%clk 0:02:51]} 10. Nd2 {[%clk 0:02:51]}  Bd7 {[%clk 0:02:49]} 11. a3 {[%clk 0:02:48]}  Qe8 {[%clk 0:02:49]} 12. Qc2 {[%clk 0:02:47]}  Nh7 {[%clk 0:02:41]} 13. f3 {[%clk 0:02:44]}  f5 {[%clk 0:02:40]} 14. O-O-O {[%clk 0:02:41]}  Nc5 {[%clk 0:02:37]} 15. Kb1 {[%clk 0:02:39]}  a4 {[%clk 0:02:36]} 16. Bf2 {[%clk 0:02:39]}  Nf6 {[%clk 0:02:23]} 17. Rdf1 {[%clk 0:02:31]}  c6 {[%clk 0:02:09]} 18. dxc6 {[%clk 0:02:08]}  bxc6 {[%clk 0:02:08]} 19. Bxc5 {[%clk 0:02:05]}  dxc5 {[%clk 0:02:08]} 20. Nxa4 {[%clk 0:02:05]}  Qe7 {[%clk 0:01:49]} 21. Nb6 {[%clk 0:02:04]}  Rab8 {[%clk 0:01:48]} 22. Nxd7 {[%clk 0:02:04]}  Qxd7 {[%clk 0:01:47]} 23. Rd1 {[%clk 0:02:03]}  Qa7 {[%clk 0:01:46]} 24. Ka2 {[%clk 0:02:02]}  Rfd8 {[%clk 0:01:45]} 25. Nb3 {[%clk 0:01:53]}  f4 {[%clk 0:01:29]} 26. Rxd8+ {[%clk 0:01:51]}  Rxd8 {[%clk 0:01:27]} 27. Rd1 {[%clk 0:01:52]}  Rb8 {[%clk 0:01:26]} 28. Qc3 {[%clk 0:01:47]}  Ne8 {[%clk 0:01:25]} 29. Rd2 {[%clk 0:01:45]}  Qb6 {[%clk 0:01:24]} 30. Bd1 {[%clk 0:01:44]}  Nc7 {[%clk 0:01:23]} 31. Qa5 {[%clk 0:01:40]}  Ne6 {[%clk 0:01:16]} 32. Rd6 {[%clk 0:01:31]}  Nd4 {[%clk 0:01:09]} 33. Qxb6 {[%clk 0:01:07]}  Rxb6 {[%clk 0:01:08]} 34. Rxg6 {[%clk 0:01:05]}  Kf7 {[%clk 0:01:08]} 35. Rg4 {[%clk 0:00:44]}  Bf6 {[%clk 0:00:52]} 36. Nxd4 {[%clk 0:00:37]}  cxd4 {[%clk 0:00:50]} 37. c5 {[%clk 0:00:36]}  Rb5 {[%clk 0:00:42]} 38. b4 {[%clk 0:00:36]}  h5 {[%clk 0:00:41]} 39. Bb3+ {[%clk 0:00:36]}  Ke7 {[%clk 0:00:38]} 40. Rg8 {[%clk 0:00:36]}  Rb7 {[%clk 0:00:36]} 41. Bc4 {[%clk 0:00:34]}  Rd7 {[%clk 0:00:33]} 42. Bd3 {[%clk 0:00:34]}  Ra7 {[%clk 0:00:32]} 43. Kb3 {[%clk 0:00:34]}  Kf7 {[%clk 0:00:32]} 44. Rc8 {[%clk 0:00:33]}  Be7 {[%clk 0:00:24]} 45. Rxc6 {[%clk 0:00:33]}  h4 {[%clk 0:00:24]} 46. h3 {[%clk 0:00:31]}  Ra8 {[%clk 0:00:22]} 47. Bc4+ {[%clk 0:00:25]}  Kg7 {[%clk 0:00:21]} 48. a4 {[%clk 0:00:25]} 1-0


[Site "https://www.chess.com"]

[Event "Titled Tuesday Blitz June 22 2021"]
[White "Bluebaum, Matthias"]
[Black "Siniauski, Artsiom"]
[WhiteFideId "24651516"]
[BlackFideId "13512269"]
[WhiteElo "2685"]
[BlackElo "2212"]
[Result "1-0"]
[Round "02"]
[TimeControl "180+1"]
[Date "2021.06.22"]
[WhiteClock "0:00:20"]
[BlackClock "0:00:01"]

1. d4 {[%clk 0:03:00]}  Nf6 {[%clk 0:03:00]} 2. c4 {[%clk 0:03:00]}  e6 {[%clk 0:02:59]} 3. Nc3 {[%clk 0:02:59]}  Bb4 {[%clk 0:02:59]} 4. e3 {[%clk 0:02:59]}  c5 {[%clk 0:02:57]} 5. Ne2 {[%clk 0:02:58]}  cxd4 {[%clk 0:02:54]} 6. exd4 {[%clk 0:02:59]}  d5 {[%clk 0:02:54]} 7. c5 {[%clk 0:02:57]}  Nc6 {[%clk 0:02:50]} 8. a3 {[%clk 0:02:55]}  Bxc3+ {[%clk 0:02:50]} 9. Nxc3 {[%clk 0:02:56]}  b6 {[%clk 0:02:50]} 10. Bb5 {[%clk 0:02:49]}  Bd7 {[%clk 0:02:50]} 11. b4 {[%clk 0:02:49]}  bxc5 {[%clk 0:02:49]} 12. bxc5 {[%clk 0:02:49]}  O-O {[%clk 0:02:46]} 13. O-O {[%clk 0:02:43]}  Na5 {[%clk 0:02:32]} 14. Bd3 {[%clk 0:02:40]}  Rb8 {[%clk 0:02:28]} 15. Bf4 {[%clk 0:02:29]}  Rb2 {[%clk 0:02:11]} 16. Qc1 {[%clk 0:02:26]}  Rb3 {[%clk 0:02:08]} 17. Qc2 {[%clk 0:02:26]}  Bc6 {[%clk 0:01:55]} 18. Rfb1 {[%clk 0:02:22]}  Rxb1+ {[%clk 0:01:55]} 19. Rxb1 {[%clk 0:02:23]}  h6 {[%clk 0:01:42]} 20. h3 {[%clk 0:02:20]}  Nc4 {[%clk 0:01:36]} 21. Qb3 {[%clk 0:01:53]}  Nh5 {[%clk 0:01:13]} 22. Bc1 {[%clk 0:01:33]}  Qf6 {[%clk 0:01:13]} 23. Ne2 {[%clk 0:01:31]}  e5 {[%clk 0:00:57]} 24. dxe5 {[%clk 0:01:11]}  Nxe5 {[%clk 0:00:57]} 25. Nd4 {[%clk 0:01:06]}  Bd7 {[%clk 0:00:32]} 26. Bf1 {[%clk 0:00:59]}  Be6 {[%clk 0:00:27]} 27. Be3 {[%clk 0:00:50]}  Nf4 {[%clk 0:00:25]} 28. Rc1 {[%clk 0:00:29]}  Rc8 {[%clk 0:00:10]} 29. c6 {[%clk 0:00:29]}  Rc7 {[%clk 0:00:11]} 30. Nxe6 {[%clk 0:00:24]}  fxe6 {[%clk 0:00:10]} 31. Qb8+ {[%clk 0:00:23]}  Kh7 {[%clk 0:00:07]} 32. Qxc7 {[%clk 0:00:24]}  Nxh3+ {[%clk 0:00:05]} 33. gxh3 {[%clk 0:00:23]}  Nf3+ {[%clk 0:00:04]} 34. Kh1 {[%clk 0:00:24]}  Qf5 {[%clk 0:00:04]} 35. Qg3 {[%clk 0:00:24]}  d4 {[%clk 0:00:02]} 36. Bg2 {[%clk 0:00:20]}  Ne5 {[%clk 0:00:01]} 37. Bxd4 {[%clk 0:00:20]} 1-0


[Site "https://www.chess.com"]

[Event "Titled Tuesday Blitz June 22 2021"]
[White "Gevorgyan, David Sh."]
[Black "Nguyen, Ngoc Truong Son"]
[WhiteFideId "13303244"]
[BlackFideId "12401110"]
[WhiteElo "2255"]
[BlackElo "2596"]
[Result "1-0"]
[Round "02"]
[TimeControl "180+1"]
[Date "2021.06.22"]
[WhiteClock "0:00:08"]
[BlackClock "0:00:08"]

1. d4 {[%clk 0:03:00]}  Nf6 {[%clk 0:02:59]} 2. c4 {[%clk 0:03:00]}  e6 {[%clk 0:02:59]} 3. Nc3 {[%clk 0:02:59]}  Bb4 {[%clk 0:02:58]} 4. e3 {[%clk 0:03:00]}  c5 {[%clk 0:02:56]} 5. Bd2 {[%clk 0:02:55]}  O-O {[%clk 0:02:54]} 6. a3 {[%clk 0:02:55]}  Bxc3 {[%clk 0:02:52]} 7. Bxc3 {[%clk 0:02:56]}  Ne4 {[%clk 0:02:52]} 8. Qc2 {[%clk 0:02:55]}  Nxc3 {[%clk 0:02:52]} 9. Qxc3 {[%clk 0:02:56]}  d6 {[%clk 0:02:50]} 10. Rd1 {[%clk 0:02:54]}  Qe7 {[%clk 0:02:50]} 11. Nf3 {[%clk 0:02:52]}  b6 {[%clk 0:02:42]} 12. Be2 {[%clk 0:02:47]}  Bb7 {[%clk 0:02:42]} 13. O-O {[%clk 0:02:47]}  Nd7 {[%clk 0:02:39]} 14. Rd2 {[%clk 0:02:38]}  Nf6 {[%clk 0:02:38]} 15. Bd3 {[%clk 0:02:28]}  Bxf3 {[%clk 0:02:35]} 16. gxf3 {[%clk 0:02:29]}  Rac8 {[%clk 0:02:34]} 17. Bb1 {[%clk 0:02:12]}  g6 {[%clk 0:02:30]} 18. dxc5 {[%clk 0:01:58]}  Rxc5 {[%clk 0:02:28]} 19. b4 {[%clk 0:01:58]}  Rh5 {[%clk 0:02:21]} 20. Rfd1 {[%clk 0:01:49]}  d5 {[%clk 0:02:18]} 21. c5 {[%clk 0:01:47]}  bxc5 {[%clk 0:02:02]} 22. Qxc5 {[%clk 0:01:48]}  Qxc5 {[%clk 0:01:42]} 23. bxc5 {[%clk 0:01:49]}  Rc8 {[%clk 0:01:43]} 24. Rc2 {[%clk 0:01:42]}  Nd7 {[%clk 0:01:42]} 25. c6 {[%clk 0:01:34]}  Ne5 {[%clk 0:01:42]} 26. c7 {[%clk 0:01:28]}  Nxf3+ {[%clk 0:01:41]} 27. Kg2 {[%clk 0:01:26]}  Ne5 {[%clk 0:01:38]} 28. Ba2 {[%clk 0:01:19]}  Rh4 {[%clk 0:01:27]} 29. f4 {[%clk 0:01:15]}  Ng4 {[%clk 0:01:24]} 30. Kg3 {[%clk 0:00:47]}  Nxe3 {[%clk 0:01:24]} 31. Rb1 {[%clk 0:00:47]}  Nf5+ {[%clk 0:01:22]} 32. Kg2 {[%clk 0:00:31]}  Rxf4 {[%clk 0:01:21]} 33. Rb8 {[%clk 0:00:27]}  Ne7 {[%clk 0:01:21]} 34. Rcb2 {[%clk 0:00:17]}  Kg7 {[%clk 0:00:57]} 35. Rxc8 {[%clk 0:00:17]}  Nxc8 {[%clk 0:00:58]} 36. Rb8 {[%clk 0:00:18]}  Nd6 {[%clk 0:00:14]} 37. Rd8 {[%clk 0:00:15]}  Rd4 {[%clk 0:00:13]} 38. Rxd6 {[%clk 0:00:12]}  Rd2+ {[%clk 0:00:13]} 39. Kf3 {[%clk 0:00:12]}  Rc2 {[%clk 0:00:14]} 40. Rd7 {[%clk 0:00:11]}  h5 {[%clk 0:00:10]} 41. Bb1 {[%clk 0:00:09]}  Rc6 {[%clk 0:00:09]} 42. Bd3 {[%clk 0:00:08]}  g5 {[%clk 0:00:08]} 43. Ba6 {[%clk 0:00:08]} 1-0


[Site "https://www.chess.com"]

[Event "Titled Tuesday Blitz June 22 2021"]
[White "Hansen, Eric"]
[Black "Reshetkov, Kirill"]
[WhiteFideId "2606771"]
[BlackFideId "14109050"]
[WhiteElo "2568"]
[BlackElo "2318"]
[Result "1-0"]
[Round "02"]
[TimeControl "180+1"]
[Date "2021.06.22"]
[WhiteClock "0:01:18"]
[BlackClock "0:01:22"]

1. c4 {[%clk 0:02:54]}  e5 {[%clk 0:02:59]} 2. Nc3 {[%clk 0:02:51]}  Nf6 {[%clk 0:02:59]} 3. Nf3 {[%clk 0:02:52]}  d6 {[%clk 0:02:59]} 4. d4 {[%clk 0:02:50]}  Nbd7 {[%clk 0:02:59]} 5. e4 {[%clk 0:02:49]}  Be7 {[%clk 0:03:00]} 6. Be2 {[%clk 0:02:47]}  O-O {[%clk 0:03:00]} 7. O-O {[%clk 0:02:47]}  c6 {[%clk 0:03:00]} 8. Re1 {[%clk 0:02:45]}  a6 {[%clk 0:03:00]} 9. Bf1 {[%clk 0:02:41]}  b5 {[%clk 0:02:56]} 10. b3 {[%clk 0:02:42]}  Bb7 {[%clk 0:02:52]} 11. d5 {[%clk 0:02:32]}  b4 {[%clk 0:02:50]} 12. dxc6 {[%clk 0:02:32]}  Bxc6 {[%clk 0:02:51]} 13. Nd5 {[%clk 0:02:33]}  Bxd5 {[%clk 0:02:46]} 14. cxd5 {[%clk 0:02:32]}  Nc5 {[%clk 0:02:47]} 15. Nd2 {[%clk 0:02:32]}  Nfd7 {[%clk 0:02:43]} 16. Nc4 {[%clk 0:02:31]}  Nb6 {[%clk 0:02:43]} 17. Bd2 {[%clk 0:02:24]}  Nxc4 {[%clk 0:02:43]} 18. Bxc4 {[%clk 0:02:25]}  a5 {[%clk 0:02:44]} 19. a3 {[%clk 0:02:25]}  Qb6 {[%clk 0:02:43]} 20. g3 {[%clk 0:02:22]}  bxa3 {[%clk 0:02:41]} 21. Rxa3 {[%clk 0:02:22]}  Rfb8 {[%clk 0:02:41]} 22. Qf3 {[%clk 0:02:18]}  g6 {[%clk 0:02:39]} 23. Rea1 {[%clk 0:02:18]}  a4 {[%clk 0:02:28]} 24. b4 {[%clk 0:01:55]}  Nd7 {[%clk 0:02:13]} 25. Rxa4 {[%clk 0:01:55]}  Rxa4 {[%clk 0:02:13]} 26. Rxa4 {[%clk 0:01:56]}  Qd4 {[%clk 0:02:12]} 27. Bd3 {[%clk 0:01:43]}  Nb6 {[%clk 0:02:09]} 28. Ra7 {[%clk 0:01:38]}  Nxd5 {[%clk 0:02:08]} 29. Rd7 {[%clk 0:01:34]}  Nxb4 {[%clk 0:01:28]} 30. Rxe7 {[%clk 0:01:31]}  Rf8 {[%clk 0:01:25]} 31. Bh6 {[%clk 0:01:19]}  Nxd3 {[%clk 0:01:23]} 32. Qxf7+ {[%clk 0:01:19]}  Rxf7 {[%clk 0:01:22]} 33. Re8+ {[%clk 0:01:19]}  Rf8 {[%clk 0:01:22]} 34. Rxf8# {[%clk 0:01:18]} 1-0


[Site "https://www.chess.com"]

[Event "Titled Tuesday Blitz June 22 2021"]
[White "Jia, Haoxiang"]
[Black "Andreikin, Dmitry"]
[WhiteFideId "8602999"]
[BlackFideId "4158814"]
[WhiteElo "2610"]
[BlackElo "2782"]
[Result "1-0"]
[Round "02"]
[TimeControl "180+1"]
[Date "2021.06.22"]
[WhiteClock "0:00:09"]
[BlackClock "0:00:03"]

1. Nf3 {[%clk 0:03:00]}  Nf6 {[%clk 0:02:58]} 2. b3 {[%clk 0:03:01]}  g6 {[%clk 0:02:54]} 3. Bb2 {[%clk 0:03:01]}  Bg7 {[%clk 0:02:54]} 4. e3 {[%clk 0:03:00]}  c5 {[%clk 0:02:52]} 5. d4 {[%clk 0:03:00]}  cxd4 {[%clk 0:02:52]} 6. exd4 {[%clk 0:02:58]}  O-O {[%clk 0:02:51]} 7. c4 {[%clk 0:02:57]}  d5 {[%clk 0:02:43]} 8. Be2 {[%clk 0:02:56]}  Nc6 {[%clk 0:02:37]} 9. O-O {[%clk 0:02:54]}  dxc4 {[%clk 0:02:24]} 10. bxc4 {[%clk 0:02:53]}  Nh5 {[%clk 0:02:24]} 11. Qd2 {[%clk 0:02:47]}  Bg4 {[%clk 0:02:17]} 12. d5 {[%clk 0:02:37]}  Bxf3 {[%clk 0:01:59]} 13. Bxf3 {[%clk 0:02:32]}  Ne5 {[%clk 0:02:00]} 14. Be2 {[%clk 0:01:50]}  Qb6 {[%clk 0:01:59]} 15. Bc3 {[%clk 0:01:22]}  Rac8 {[%clk 0:01:27]} 16. Na3 {[%clk 0:01:21]}  Qa6 {[%clk 0:01:18]} 17. Bb4 {[%clk 0:01:16]}  Nf6 {[%clk 0:01:12]} 18. Rac1 {[%clk 0:01:03]}  Qa4 {[%clk 0:00:54]} 19. Bxe7 {[%clk 0:00:58]}  Rfe8 {[%clk 0:00:52]} 20. Bxf6 {[%clk 0:00:56]}  Bxf6 {[%clk 0:00:52]} 21. Nb5 {[%clk 0:00:56]}  Red8 {[%clk 0:00:41]} 22. c5 {[%clk 0:00:51]}  Qh4 {[%clk 0:00:29]} 23. d6 {[%clk 0:00:31]}  Nc6 {[%clk 0:00:18]} 24. g3 {[%clk 0:00:28]}  Qh3 {[%clk 0:00:12]} 25. Bf3 {[%clk 0:00:26]}  a6 {[%clk 0:00:12]} 26. Bg2 {[%clk 0:00:22]}  Qh5 {[%clk 0:00:10]} 27. Nc7 {[%clk 0:00:20]}  Nd4 {[%clk 0:00:09]} 28. Rfe1 {[%clk 0:00:17]}  Kg7 {[%clk 0:00:08]} 29. Nd5 {[%clk 0:00:16]}  Nf3+ {[%clk 0:00:07]} 30. Bxf3 {[%clk 0:00:16]}  Qxf3 {[%clk 0:00:08]} 31. Nxf6 {[%clk 0:00:16]}  Qxf6 {[%clk 0:00:07]} 32. Qd5 {[%clk 0:00:16]}  Rc6 {[%clk 0:00:06]} 33. Re7 {[%clk 0:00:15]}  h5 {[%clk 0:00:02]} 34. Rxb7 {[%clk 0:00:14]}  Rdxd6 {[%clk 0:00:02]} 35. cxd6 {[%clk 0:00:13]}  Rxc1+ {[%clk 0:00:02]} 36. Kg2 {[%clk 0:00:13]}  h4 {[%clk 0:00:03]} 37. Rb4 {[%clk 0:00:09]} 1-0


[Site "https://www.chess.com"]

[Event "Titled Tuesday Blitz June 22 2021"]
[White "Korobov, Anton"]
[Black "Gelman, Alexander"]
[WhiteFideId "14105730"]
[BlackFideId "4118316"]
[WhiteElo "2668"]
[BlackElo "2375"]
[Result "1-0"]
[Round "02"]
[TimeControl "180+1"]
[Date "2021.06.22"]
[WhiteClock "0:00:50"]
[BlackClock "0:00:42"]

1. d4 {[%clk 0:03:00]}  Nf6 {[%clk 0:02:57]} 2. c4 {[%clk 0:03:01]}  c5 {[%clk 0:02:58]} 3. d5 {[%clk 0:03:01]}  d6 {[%clk 0:02:58]} 4. Nc3 {[%clk 0:03:00]}  Nbd7 {[%clk 0:02:58]} 5. e4 {[%clk 0:02:58]}  h6 {[%clk 0:02:59]} 6. f4 {[%clk 0:02:51]}  g5 {[%clk 0:02:59]} 7. Nh3 {[%clk 0:02:39]}  Bg7 {[%clk 0:02:36]} 8. Be2 {[%clk 0:02:36]}  gxf4 {[%clk 0:02:19]} 9. Bxf4 {[%clk 0:02:37]}  a6 {[%clk 0:02:14]} 10. O-O {[%clk 0:02:35]}  Qa5 {[%clk 0:02:12]} 11. Nf2 {[%clk 0:02:29]}  Ne5 {[%clk 0:02:03]} 12. Bxe5 {[%clk 0:02:28]}  dxe5 {[%clk 0:02:03]} 13. Nd3 {[%clk 0:02:19]}  Qc7 {[%clk 0:01:57]} 14. Qe1 {[%clk 0:02:02]}  h5 {[%clk 0:01:56]} 15. Rd1 {[%clk 0:01:52]}  Qd6 {[%clk 0:01:26]} 16. Qg3 {[%clk 0:01:46]}  Ng4 {[%clk 0:01:25]} 17. h3 {[%clk 0:01:46]}  h4 {[%clk 0:01:24]} 18. Qf3 {[%clk 0:01:46]}  Nf6 {[%clk 0:01:23]} 19. Kh1 {[%clk 0:01:32]}  Bd7 {[%clk 0:01:18]} 20. b4 {[%clk 0:01:29]}  b6 {[%clk 0:01:17]} 21. bxc5 {[%clk 0:01:27]}  bxc5 {[%clk 0:01:17]} 22. Qf2 {[%clk 0:01:26]}  Rc8 {[%clk 0:01:17]} 23. Rb1 {[%clk 0:01:26]}  Bh6 {[%clk 0:01:00]} 24. Qxh4 {[%clk 0:01:16]}  Kf8 {[%clk 0:00:57]} 25. Rb7 {[%clk 0:01:09]}  Bg7 {[%clk 0:00:50]} 26. Qg3 {[%clk 0:01:09]}  Nh5 {[%clk 0:00:45]} 27. Bxh5 {[%clk 0:01:07]}  Rxh5 {[%clk 0:00:46]} 28. Rfb1 {[%clk 0:00:56]}  Bf6 {[%clk 0:00:45]} 29. R1b6 {[%clk 0:00:56]}  Bh4 {[%clk 0:00:42]} 30. Rxd6 {[%clk 0:00:50]} 1-0


[Site "https://www.chess.com"]

[Event "Titled Tuesday Blitz June 22 2021"]
[White "Nakamura, Hikaru"]
[Black "Avila Pavas, Santiago"]
[WhiteFideId "2016192"]
[BlackFideId "4437128"]
[WhiteElo "2900"]
[BlackElo "2244"]
[Result "1-0"]
[Round "02"]
[TimeControl "180+1"]
[Date "2021.06.22"]
[WhiteClock "0:00:52"]
[BlackClock "0:00:02"]

1. Nf3 {[%clk 0:03:00]}  Nf6 {[%clk 0:02:59]} 2. b3 {[%clk 0:03:01]}  g6 {[%clk 0:02:59]} 3. Bb2 {[%clk 0:03:01]}  Bg7 {[%clk 0:03:00]} 4. d4 {[%clk 0:03:02]}  O-O {[%clk 0:02:59]} 5. e3 {[%clk 0:03:03]}  Ne4 {[%clk 0:02:59]} 6. Bd3 {[%clk 0:02:59]}  d5 {[%clk 0:02:58]} 7. c4 {[%clk 0:02:59]}  c5 {[%clk 0:02:53]} 8. cxd5 {[%clk 0:02:57]}  Qxd5 {[%clk 0:02:53]} 9. Qc2 {[%clk 0:02:57]}  Bf5 {[%clk 0:02:24]} 10. Bc4 {[%clk 0:02:20]}  Qd7 {[%clk 0:01:09]} 11. Bd3 {[%clk 0:02:20]}  Qd5 {[%clk 0:01:08]} 12. Bc4 {[%clk 0:02:21]}  Qd7 {[%clk 0:01:08]} 13. Qe2 {[%clk 0:02:21]}  Nc6 {[%clk 0:00:53]} 14. d5 {[%clk 0:02:22]}  Na5 {[%clk 0:00:42]} 15. Bxg7 {[%clk 0:02:21]}  Kxg7 {[%clk 0:00:43]} 16. O-O {[%clk 0:02:20]}  Nxc4 {[%clk 0:00:42]} 17. bxc4 {[%clk 0:02:20]}  Nd6 {[%clk 0:00:41]} 18. Nc3 {[%clk 0:02:18]}  Bg4 {[%clk 0:00:40]} 19. Kh1 {[%clk 0:01:55]}  Bxf3 {[%clk 0:00:40]} 20. gxf3 {[%clk 0:01:56]}  b6 {[%clk 0:00:40]} 21. a4 {[%clk 0:01:56]}  Qh3 {[%clk 0:00:39]} 22. Rg1 {[%clk 0:01:55]}  h5 {[%clk 0:00:36]} 23. f4 {[%clk 0:01:52]}  Qh4 {[%clk 0:00:34]} 24. Rg5 {[%clk 0:01:47]}  f6 {[%clk 0:00:20]} 25. Rg2 {[%clk 0:01:45]}  Kh7 {[%clk 0:00:20]} 26. Rag1 {[%clk 0:01:44]}  Rg8 {[%clk 0:00:20]} 27. Qf3 {[%clk 0:01:42]}  Nxc4 {[%clk 0:00:11]} 28. Rg3 {[%clk 0:01:17]}  f5 {[%clk 0:00:11]} 29. Rg5 {[%clk 0:01:18]}  Nd6 {[%clk 0:00:06]} 30. R1g3 {[%clk 0:01:18]}  Nf7 {[%clk 0:00:06]} 31. Ne2 {[%clk 0:01:12]}  Nxg5 {[%clk 0:00:06]} 32. Rxg5 {[%clk 0:01:13]}  Rad8 {[%clk 0:00:04]} 33. Ng1 {[%clk 0:01:10]}  e6 {[%clk 0:00:03]} 34. dxe6 {[%clk 0:01:11]}  Rd2 {[%clk 0:00:02]} 35. Kg2 {[%clk 0:01:09]}  Re8 {[%clk 0:00:03]} 36. Nh3 {[%clk 0:01:00]}  Rxe6 {[%clk 0:00:02]} 37. Qb7+ {[%clk 0:01:01]}  Kh6 {[%clk 0:00:02]} 38. Qf7 {[%clk 0:01:02]}  Rdd6 {[%clk 0:00:02]} 39. Qg8 {[%clk 0:00:58]}  Re7 {[%clk 0:00:01]} 40. Qh8+ {[%clk 0:00:57]}  Rh7 {[%clk 0:00:01]} 41. Qf8+ {[%clk 0:00:58]}  Rg7 {[%clk 0:00:02]} 42. Qxd6 {[%clk 0:00:58]}  a6 {[%clk 0:00:01]} 43. Ng1 {[%clk 0:00:52]}  c4 {[%clk 0:00:02]} 44. Nf3 {[%clk 0:00:52]} 1-0


[Site "https://www.chess.com"]